bitfinex/quotes_ETHUSD_20250324
["timestamp","ask_amount","ask_price","bid_price","bid_amount"]
[1742856644934,4.80676,2080.4,2080.3,4.581]
[1742856645135,5.21252087,2080.4,2080.2,4.589]
[1742856645441,11.24252087,2080.4,2080.2,4.589]
[1742856646344,4.80699,2080.3,2080.2,4.589]
[1742856646644,5.21252003,2080.3,2080.2,4.589]
[1742856647146,0.40553003,2080.3,2080.2,4.589]
[1742856647642,0.40553003,2080.3,2080.1,0.01]
[1742856647847,4.80723,2080.2,2080.1,4.594]
[1742856648014,5.58913,2080.2,2080.1,4.594]
[1742856648344,5.99442916,2080.2,2080.1,4.594]
[1742856649042,5.99442916,2080.2,2080.1,0.01]
[1742856649249,8.15827208,2080.2,2080.1,4.592]
[1742856651844,8.15827208,2080.2,2080.1,0.01]
[1742856652147,5.99442916,2080.2,2080.1,0.01]
[1742856654045,0.40529916,2080.2,2080.1,0.01]
[1742856654349,4.80722,2080.3,2080.1,0.01]
[1742856654549,0.40116427,2080.2,2080.1,0.01]
[1742856654753,4.80722,2080.3,2080.1,0.01]
[1742856654945,0.40116427,2080.2,2080.1,0.01]
[1742856655153,4.80722,2080.3,2080.1,0.01]
[1742856655325,0.40116427,2080.2,2080.1,0.01]
[1742856655651,11.66607,2080.4,2080.1,0.01]
[1742856655652,16.47301,2080.4,2080.1,0.01]
[1742856656114,0.40139515,2080.3,2080.1,0.01]
[1742856658451,5.20840515,2080.3,2080.1,0.01]
[1742856658951,0.40139515,2080.3,2080.1,0.01]
[1742856659653,5.20842515,2080.3,2080.1,0.01]
[1742856660249,5.62813,2080.2,2080.1,0.01]
[1742856660633,6.02906957,2080.2,2080.1,0.01]
[1742856664057,0.40093957,2080.2,2080.1,0.01]
[1742856664447,4.80723,2080.2,2080.1,0.01]
[1742856664639,5.20798986,2080.2,2080.1,0.01]
[1742856665734,0.40075986,2080.2,2080.1,0.01]
[1742856665935,4.80703,2080.3,2080.1,0.01]
[1742856666145,0.40075986,2080.2,2080.1,0.01]
[1742856666331,9.61422,2080.3,2080.1,0.01]
[1742856666531,0.40075986,2080.2,2080.1,0.01]
[1742856666741,4.80703,2080.3,2080.1,0.01]
[1742856666964,0.40075986,2080.2,2080.1,0.01]
[1742856667165,9.6142,2080.3,2080.1,0.01]
[1742856667378,0.4005403,2080.2,2080.1,0.01]
[1742856667733,10.83676,2080.4,2080.1,0.01]
[1742856667933,0.40222684,2080.3,2080.1,0.0876]
[1742856668154,0.40222684,2080.3,2080.1,4.89494]
[1742856668466,0.40222684,2080.3,2080.2,9.38023]
[1742856668833,0.40222684,2080.3,2080.2,4.573]
[1742856669038,0.40222684,2080.3,2080.2,6.000566]
[1742856669582,0.40222684,2080.3,2080.2,10.807796]
[1742856669863,0.40222684,2080.3,2080.2,6.000566]
[1742856670172,0.40222684,2080.3,2080.2,10.807796]
[1742856670344,4.8063,2080.6,2080.2,10.807796]
[1742856670548,0.40271645,2080.5,2080.2,10.807796]
[1742856670854,0.40271645,2080.5,2080.2,10.807686]
[1742856671475,0.40271645,2080.5,2080.4,0.0776]
[1742856671647,0.40271645,2080.5,2080.3,5.8963086]
[1742856671846,4.80609,2080.7,2080.3,5.8963086]
[1742856672047,0.37061581,2080.4,2080.2,4.6506]
[1742856672272,5.63488,2080.5,2080.2,4.573]
[1742856672480,0.37038504,2080.3,2080.2,4.573]
[1742856672957,5.63488,2080.5,2080.2,4.573]
[1742856673154,0.37061581,2080.4,2080.2,4.573]
[1742856673879,5.17739581,2080.4,2080.2,4.573]
[1742856674047,5.17739581,2080.4,2080.1,0.01]
[1742856674252,5.17739581,2080.4,2080.2,4.588]
[1742856675357,4.80699,2080.3,2080.2,4.588]
[1742856675549,5.1751782,2080.3,2080.2,4.588]
[1742856675750,0.3681882,2080.3,2080.2,4.588]
[1742856676870,5.56753,2080.2,2080.1,0.01]
[1742856677076,5.1752382,2080.3,2080.1,4.605]
[1742856677387,5.17568175,2080.2,2080.1,4.605]
[1742856678081,0.36845175,2080.2,2080.1,4.605]
[1742856678488,4.80706,2080.3,2080.1,4.605]
[1742856678647,0.36839681,2080.2,2080.1,4.605]
[1742856679048,4.80706,2080.3,2080.1,4.605]
[1742856679285,0.36839681,2080.2,2080.1,4.605]
[1742856679682,4.80706,2080.3,2080.1,4.605]
[1742856679874,0.36845175,2080.2,2080.1,4.605]
[1742856680281,4.80706,2080.3,2080.1,4.605]
[1742856680490,0.36845175,2080.2,2080.1,4.605]
[1742856680787,11.59709,2080.4,2080.1,4.605]
[1742856681094,0.36845175,2080.2,2080.1,4.605]
[1742856681266,13.237454,2080.4,2080.1,4.605]
[1742856681267,11.59709,2080.4,2080.1,4.605]
[1742856681468,0.36845175,2080.2,2080.1,4.6826]
[1742856681668,10.83679,2080.4,2080.1,4.6826]
[1742856681908,0.36783875,2080.2,2080.1,4.605]
[1742856682369,10.83689,2080.4,2080.1,4.605]
[1742856682569,0.36806962,2080.3,2080.1,4.605]
[1742856683683,0.36806962,2080.3,2080.1,9.41231]
[1742856683877,0.36806962,2080.3,2080.1,15.168611]
[1742856684406,0.36806962,2080.3,2080.1,10.573611]
[1742856684579,0.36806962,2080.3,2080.1,5.766301]
[1742856684780,0.36806962,2080.3,2080.1,4.81731]
[1742856686106,0.36806962,2080.3,2080.1,0.01]
[1742856686284,5.93541962,2080.3,2080.1,0.01]
[1742856686600,4.80723,2080.2,2080.1,0.01]
[1742856687001,5.17545325,2080.2,2080.1,0.01]
[1742856687206,0.36822325,2080.2,2080.1,0.01]
[1742856687583,5.56735,2080.3,2080.1,0.01]
[1742856687792,0.36822325,2080.2,2080.1,0.01]
[1742856688204,5.51735,2080.3,2080.1,0.01]
[1742856688406,0.36822325,2080.2,2080.1,0.01]
[1742856688905,10.83679,2080.4,2080.1,0.01]
[1742856689083,0.36822325,2080.2,2080.1,0.01]
[1742856689602,15.64375,2080.4,2080.1,0.01]
[1742856689786,0.36822325,2080.2,2080.1,0.01]
[1742856689993,10.83679,2080.4,2080.1,0.963414]
[1742856690193,0.36822325,2080.2,2080.1,0.01]
[1742856690403,10.83679,2080.4,2080.1,0.01]
[1742856690781,0.3684541,2080.3,2080.1,4.81743]
[1742856691009,0.3684541,2080.3,2080.1,4.81729]
[1742856691513,0.3684541,2080.3,2080.2,4.80723]
[1742856691713,0.3684541,2080.3,2080.2,6.241342]
[1742856692082,0.3684541,2080.3,2080.2,1.434112]
[1742856693512,10.8366,2080.5,2080.1,0.01]
[1742856693685,0.36882544,2080.3,2080.1,0.01]
[1742856693885,4.80687,2080.4,2080.1,0.01]
[1742856694097,0.3685946,2080.2,2080.1,0.01]
[1742856694424,0.3685946,2080.2,2080.1,4.81746]
[1742856694585,4.80687,2080.4,2080.1,6.251622]
[1742856694785,0.36882544,2080.3,2080.1,6.251622]
[1742856695618,0.36882544,2080.3,2080.1,11.058942]
[1742856695820,0.36882544,2080.3,2080.1,6.251482]
[1742856696032,10.83658,2080.5,2080.1,6.251482]
[1742856696211,0.3685946,2080.2,2080.1,6.251482]
[1742856696410,10.83658,2080.5,2080.1,6.251482]
[1742856696609,0.3685946,2080.2,2080.1,6.251482]
[1742856696913,15.64328,2080.5,2080.1,6.251482]
[1742856697115,0.3685946,2080.2,2080.1,6.251482]
[1742856697716,10.83658,2080.5,2080.1,6.251452]
[1742856697905,0.3685946,2080.2,2080.1,6.251452]
[1742856698229,0.3685946,2080.2,2080.1,11.058772]
[1742856698391,10.83658,2080.5,2080.1,11.058772]
[1742856698730,0.36905626,2080.4,2080.1,6.251452]
[1742856699219,5.17585626,2080.4,2080.1,6.251452]
[1742856699421,0.36905626,2080.4,2080.1,4.81729]
[1742856700629,0.36905626,2080.4,2080.1,9.62464]
[1742856701121,0.36905626,2080.4,2080.2,4.80714]
[1742856702323,0.36905626,2080.4,2080.2,4.80708]
[1742856702818,0.36905626,2080.4,2080.3,4.80699]
[1742856703297,0.36905626,2080.4,2080.2,9.61419]
[1742856703499,0.36905626,2080.4,2080.2,11.048269]
[1742856703725,0.36905626,2080.4,2080.2,11.048279]
[1742856704026,0.36905626,2080.4,2080.2,6.241159]
[1742856704325,0.36905626,2080.4,2080.2,4.80708]
[1742856708831,0.36905626,2080.4,2080.2,4.80704]
[1742856709055,0.36905626,2080.4,2080.3,4.80699]
[1742856711455,0.36806898,2080.4,2080.3,4.80699]
[1742856711859,4.80633,2080.6,2080.3,4.80699]
[1742856712028,0.36815793,2080.4,2080.3,4.80699]
[1742856712348,4.80633,2080.6,2080.3,4.80699]
[1742856712713,0.36851778,2080.5,2080.3,4.80699]
[1742856713450,0.36851778,2080.5,2080.2,4.80715]
[1742856713742,0.36851778,2080.5,2080.2,9.61416]
[1742856714211,0.36851778,2080.5,2080.2,4.80708]
[1742856714411,4.80712,2080.3,2080.2,4.547]
[1742856714632,4.80723,2080.2,2080.1,4.557]
[1742856715059,5.17483043,2080.2,2080.1,4.557]
[1742856717562,0.36760043,2080.2,2080.1,4.557]
[1742856717730,10.83712,2080.3,2080.1,4.557]
[1742856718128,0.36760043,2080.2,2080.1,4.557]
[1742856718534,10.83712,2080.3,2080.1,4.557]
[1742856718740,0.36760043,2080.2,2080.1,4.557]
[1742856719029,10.83712,2080.3,2080.1,4.557]
[1742856719231,0.36760043,2080.2,2080.1,4.557]
[1742856719559,10.83712,2080.3,2080.1,4.557]
[1742856719761,0.36760043,2080.2,2080.1,4.557]
[1742856719960,10.83712,2080.3,2080.1,4.557]
[1742856720159,0.36760043,2080.2,2080.1,0.01]
[1742856720332,15.64431,2080.3,2080.1,4.563]
[1742856720528,5.95003043,2080.2,2080.1,4.563]
[1742856720761,5.95003043,2080.2,2080.1,0.01]
[1742856725360,11.98003043,2080.2,2080.1,0.01]
[1742856735982,14.98003043,2080.2,2080.1,0.01]
[1742856736855,4.80861,2079.6,2079.5,25.412]
[1742856737085,4.80769,2080.0,2079.3,4.6686]
[1742856737086,0.799,2079.7,2079.3,4.6686]
[1742856737287,4.80893,2079.5,2079.3,0.1276]
[1742856737583,0.36110404,2079.4,2079.3,4.543]
[1742856738371,5.17017404,2079.4,2079.3,4.543]
[1742856739561,0.36110404,2079.4,2079.3,4.543]
[1742856744495,0.36110404,2079.4,2079.2,0.2]
[1742856744694,0.36110404,2079.4,2079.3,4.534]
[1742856746163,2.01804314,2079.4,2079.3,4.532]
[1742856746395,0.36110404,2079.4,2079.3,4.532]
[1742856750267,5.97657404,2079.4,2079.2,0.2]
[1742856750496,5.97657404,2079.4,2079.2,4.727]
[1742856751399,4.80931,2079.3,2079.2,4.727]
[1742856751566,5.16789239,2079.3,2079.2,4.727]
[1742856751900,0.35858239,2079.3,2079.2,4.727]
[1742856756004,0.35858239,2079.3,2079.2,0.2]
[1742856757600,5.16789239,2079.3,2079.2,0.2]
[1742856757808,0.35858239,2079.3,2079.2,0.2]
[1742856761095,5.16789239,2079.3,2079.2,0.2]
[1742856761475,0.35858239,2079.3,2079.2,0.3276]
[1742856761810,15.64796,2079.5,2079.2,0.2]
[1742856761977,2.0603212,2079.4,2079.2,0.2]
[1742856762373,0.3588135,2079.4,2079.3,4.80931]
[1742856762595,0.3588135,2079.4,2079.3,4.93691]
[1742856763792,4.80862,2079.6,2079.3,4.93691]
[1742856763977,0.35859242,2079.5,2079.3,4.93691]
[1742856764172,0.35859242,2079.5,2079.3,4.93672]
[1742856764371,10.83838,2079.7,2079.4,4.80907]
[1742856764576,0.35882349,2079.6,2079.5,4.80873]
[1742856766096,0.35882349,2079.6,2079.4,9.61802]
[1742856766298,0.35882349,2079.6,2079.5,4.80884]
[1742856769628,10.83799,2079.9,2079.5,4.80884]
[1742856769797,0.3599797,2079.8,2079.6,4.513]
[1742856774236,0.7596,2079.7,2079.5,4.80869]
[1742856774424,0.3603252,2079.6,2079.5,9.31969]
[1742856774625,1.60061497,2079.8,2079.5,9.31969]
[1742856774803,0.36055617,2079.7,2079.5,9.31968]
[1742856774998,10.83799,2079.9,2079.5,14.12839]
[1742856775213,0.36078711,2079.8,2079.5,9.31968]
[1742856775929,5.16903711,2079.8,2079.5,4.511]
[1742856776135,5.16903711,2079.8,2079.5,9.31978]
[1742856777935,0.36078711,2079.8,2079.5,9.31978]
[1742856778135,0.36078711,2079.8,2079.6,4.80861]
[1742856779523,0.36078711,2079.8,2079.5,9.31978]
[1742856782352,0.36078711,2079.8,2079.5,14.12848]
[1742856782653,0.36078711,2079.8,2079.5,9.3197]
[1742856783355,0.36078711,2079.8,2079.5,14.12844]
[1742856783935,0.36078711,2079.8,2079.5,9.3197]
[1742856784746,0.36078711,2079.8,2079.5,9.31968]
[1742856784951,6.84568782,2079.8,2079.5,4.511]
[1742856785252,5.57229,2079.7,2079.6,4.511]
[1742856785423,5.93405603,2079.7,2079.6,4.511]
[1742856785758,1.12566603,2079.7,2079.6,4.511]
[1742856786360,5.93404603,2079.7,2079.6,4.511]
[1742856787670,1.12566603,2079.7,2079.6,4.511]
[1742856788866,5.93404603,2079.7,2079.6,4.511]
[1742856790076,0.36176603,2079.7,2079.6,4.511]
[1742856790543,10.37996,2079.9,2079.6,4.511]
[1742856790742,0.36176603,2079.7,2079.6,4.511]
[1742856790951,4.80815,2079.8,2079.6,4.511]
[1742856791128,0.36176603,2079.7,2079.6,4.511]
[1742856791532,10.38001,2079.9,2079.6,4.511]
[1742856791761,0.36170145,2079.7,2079.6,4.511]
[1742856792134,10.38,2079.9,2079.6,4.511]
[1742856792461,6.449,2079.9,2079.6,9.31961]
[1742856792666,4.808,2079.9,2079.6,9.31961]
[1742856792969,0.36193235,2079.8,2079.6,9.31961]
[1742856794967,15.64564,2080.0,2079.6,9.31961]
[1742856795147,0.36170145,2079.7,2079.6,9.31961]
[1742856795343,10.83778,2080.0,2079.6,9.31952]
[1742856795558,0.36170145,2079.7,2079.6,9.31952]
[1742856795868,15.64562,2080.0,2079.6,9.31952]
[1742856796046,0.36170145,2079.7,2079.6,9.31952]
[1742856796248,4.80793,2079.9,2079.6,9.31952]
[1742856796681,0.36193235,2079.8,2079.6,9.31952]
[1742856797033,10.83778,2080.0,2079.6,9.31952]
[1742856797261,1.640917,2079.9,2079.6,9.31952]
[1742856797855,0.36193235,2079.8,2079.7,4.80838]
[1742856798035,0.36193235,2079.8,2079.6,9.31951]
[1742856798378,10.83778,2080.0,2079.6,9.31951]
[1742856798534,0.36170145,2079.7,2079.6,9.31951]
[1742856798736,5.57138,2080.1,2079.8,4.80807]
[1742856798737,0.7639,2080.1,2079.8,4.80807]
[1742856799045,4.80725,2080.2,2079.8,4.80806]
[1742856799659,0.33143583,2080.1,2079.8,9.61608]
[1742856799857,0.33143583,2080.1,2079.9,4.93542]
[1742856800057,6.58,2080.3,2079.9,5.909724]
[1742856800340,0.32991199,2080.2,2080.0,9.61523]
[1742856800547,0.8155,2080.2,2079.9,5.782244]
[1742856800748,0.32990075,2080.1,2079.9,4.8079]
[1742856801476,0.32990075,2080.1,2079.8,4.80794]
[1742856802161,5.13737075,2080.1,2079.7,4.80829]
[1742856803352,0.32990075,2080.1,2079.9,4.80781]
[1742856803753,0.32990075,2080.1,2080.0,4.80769]
[1742856804099,11.38701,2080.3,2079.9,4.8078]
[1742856804262,0.33107609,2080.1,2079.9,4.8078]
[1742856804461,11.38701,2080.3,2079.9,4.8078]
[1742856804873,0.33130702,2080.2,2079.9,4.8078]
[1742856805183,11.38701,2080.3,2079.9,4.8078]
[1742856805385,0.33107609,2080.1,2079.9,4.8078]
[1742856805592,11.38701,2080.3,2079.9,4.8078]
[1742856805765,0.33084515,2080.0,2079.9,4.8078]
[1742856805953,11.38701,2080.3,2079.9,4.8078]
[1742856806155,0.33084515,2080.0,2079.9,4.8078]
[1742856806353,11.38701,2080.3,2079.9,4.8078]
[1742856806648,0.33084515,2080.0,2079.9,4.8078]
[1742856806853,0.33084515,2080.0,2079.9,4.80777]
[1742856807649,11.38701,2080.3,2079.9,4.80777]
[1742856807862,0.33084515,2080.0,2079.9,4.80777]
[1742856808060,11.38701,2080.3,2079.9,4.80777]
[1742856808282,0.33084515,2080.0,2079.9,4.80777]
[1742856808883,11.38701,2080.3,2079.9,4.80777]
[1742856809384,0.33130702,2080.2,2079.9,4.80777]
[1742856809588,6.58,2080.3,2080.0,4.80767]
[1742856809887,0.33148805,2080.1,2080.0,4.80767]
[1742856810091,0.33179011,2080.1,2080.0,4.80767]
[1742856810250,8.280923,2080.3,2080.0,4.80767]
[1742856810450,13.087913,2080.3,2079.9,4.80777]
[1742856810676,0.332021,2080.2,2079.9,4.80777]
[1742856811187,0.33179011,2080.1,2079.9,4.80777]
[1742856811377,11.38699,2080.3,2079.9,4.80777]
[1742856811577,0.3315592,2080.0,2079.9,4.80776]
[1742856811776,11.38699,2080.3,2079.9,4.80776]
[1742856812080,0.3315592,2080.0,2079.8,4.93572]
[1742856812281,0.33155418,2079.9,2079.8,4.80812]
[1742856813081,0.8155,2080.1,2079.8,4.80812]
[1742856813283,0.33155418,2079.9,2079.8,4.80812]
[1742856813464,0.8155,2080.1,2079.8,4.80812]
[1742856813666,0.33155418,2079.9,2079.8,4.80812]
[1742856813990,0.33155418,2079.9,2079.8,9.61617]
[1742856814155,0.8155,2080.1,2079.8,9.61617]
[1742856814356,0.33155418,2079.9,2079.8,9.61617]
[1742856814696,11.38699,2080.3,2079.9,9.61568]
[1742856814992,13.758569,2080.3,2079.9,9.61568]
[1742856815287,13.758569,2080.3,2079.9,4.80777]
[1742856815860,7.728569,2080.3,2079.9,4.80777]
[1742856819675,12.535729,2080.3,2079.9,4.80777]
[1742856820359,7.728569,2080.3,2079.9,4.80777]
[1742856820859,8.278569,2080.3,2079.9,4.80777]
[1742856821287,1.08823757,2080.2,2079.9,4.80777]
[1742856821989,5.89553757,2080.2,2079.8,4.80812]
[1742856822196,0.7522,2080.0,2079.6,4.93619]
[1742856822367,0.555966,2079.9,2079.7,4.51]
[1742856822977,5.363966,2079.9,2079.7,4.51]
[1742856823179,0.555966,2079.9,2079.7,4.51]
[1742856823365,0.33195631,2079.8,2079.7,4.51]
[1742856823565,5.55993,2080.0,2079.7,4.51]
[1742856823893,10.36784,2080.0,2079.7,4.51]
[1742856824094,0.33218727,2079.9,2079.7,4.51]
[1742856824596,5.55945,2080.2,2079.8,9.61617]
[1742856824767,0.33264911,2080.1,2079.8,9.61617]
[1742856825090,0.33264911,2080.1,2079.8,4.80802]
[1742856825563,5.14014911,2080.1,2079.8,4.80802]
[1742856825765,0.33264911,2080.1,2079.8,4.80802]
[1742856825965,5.55945,2080.2,2079.8,4.80802]
[1742856826185,0.33239086,2080.1,2079.8,9.61606]
[1742856826399,0.33239086,2080.1,2079.8,4.80802]
[1742856826695,0.33239086,2080.1,2079.8,9.61605]
[1742856827001,0.33239086,2080.1,2079.8,4.80802]
[1742856827961,0.33239086,2080.1,2079.8,9.61606]
[1742856828167,0.33239086,2080.1,2079.8,4.80802]
[1742856828361,0.33239086,2080.1,2079.9,4.80782]
[1742856828678,5.35288715,2080.3,2079.9,4.93542]
[1742856828872,0.33215995,2080.0,2079.9,4.93542]
[1742856829077,5.35288715,2080.3,2079.9,9.74315]
[1742856829295,0.33215995,2080.0,2079.9,9.74315]
[1742856829469,0.33215995,2080.0,2079.9,6.5031847]
[1742856829670,5.35288715,2080.3,2079.9,11.3109247]
[1742856829880,0.33215995,2080.0,2079.9,11.3109247]
[1742856830102,5.35288715,2080.3,2079.9,11.3109247]
[1742856830304,0.33215995,2080.0,2079.9,6.5031847]
[1742856830481,5.35288715,2080.3,2079.9,6.5031847]
[1742856830691,0.33215995,2080.0,2079.9,6.5031847]
[1742856831063,5.35288715,2080.3,2079.9,11.3109647]
[1742856831269,0.33215995,2080.0,2079.9,11.3109647]
[1742856831602,5.35287715,2080.3,2080.0,4.80766]
[1742856832195,0.54588715,2080.3,2080.0,4.80766]
[1742856832377,0.54588715,2080.3,2080.0,5.93874447]
[1742856835701,0.54588715,2080.3,2080.0,5.93861447]
[1742856835885,0.54588715,2080.3,2080.0,4.80753]
[1742856836081,0.54588715,2080.3,2080.1,4.80738]
[1742856836401,0.54588715,2080.3,2080.2,4.509]
[1742856836569,0.54588715,2080.3,2080.2,9.44383]
[1742856837175,0.54588715,2080.3,2080.2,4.509]
[1742856839401,0.54588715,2080.3,2080.2,10.260622]
[1742856841217,0.54588715,2080.3,2080.2,10.388222]
[1742856844217,0.85226233,2080.3,2080.2,10.388222]
[1742856849533,0.85226233,2080.3,2080.2,10.260622]
[1742856854738,0.85226233,2080.3,2080.2,10.388222]
[1742856854913,0.85226233,2080.3,2080.2,13.388222]
[1742856855103,0.54588715,2080.3,2080.2,13.388222]
[1742856855309,0.54588715,2080.3,2080.2,13.938222]
[1742856860351,0.54588715,2080.3,2080.2,39.348222]
[1742856861320,0.54588715,2080.3,2080.2,40.2902454]
[1742856867065,0.54588715,2080.3,2080.2,39.7402454]
[1742856867264,0.54588715,2080.3,2080.2,39.7382454]
[1742856879469,0.54588715,2080.3,2080.2,14.3282454]
[1742856882770,0.54588715,2080.3,2080.2,14.8782454]
[1742856883289,0.794,2080.7,2080.6,4.8063]
[1742856883594,0.794,2080.7,2080.6,5.767576]
[1742856883994,0.794,2080.7,2080.2,5.751602]
[1742856884309,0.7844,2080.5,2080.3,4.507]
[1742856884658,1.06640307,2080.4,2080.3,4.507]
[1742856884873,0.7844,2080.4,2080.3,9.31399]
[1742856886815,1.06755668,2080.4,2080.3,9.31399]
[1742856892032,0.28315668,2080.4,2080.3,9.31399]
[1742856892239,0.8246,2080.6,2080.5,4.80653]
[1742856892530,1.10722336,2080.6,2080.5,4.80653]
[1742856892931,0.28262336,2080.6,2080.5,4.80653]
[1742856893100,1.10722336,2080.6,2080.4,4.80665]
[1742856893306,1.10722336,2080.6,2080.3,4.507]
[1742856893307,0.8246,2080.5,2080.3,4.507]
[1742856893501,0.8246,2080.3,2080.2,7.8072]
[1742856893753,0.8246,2080.3,2080.2,12.3142]
[1742856893906,1.0828864,2080.3,2080.2,12.3142]
[1742856894637,1.0828864,2080.3,2080.1,4.80734]
[1742856894837,1.0828864,2080.3,2080.2,4.507]
[1742856895334,1.0828864,2080.3,2080.2,9.31423]
[1742856896232,1.08159195,2080.3,2080.2,9.31423]
[1742856897036,0.25699195,2080.3,2080.2,9.31423]
[1742856897329,0.8246,2080.5,2080.2,9.31423]
[1742856897531,0.8246,2080.5,2080.3,4.80678]
[1742856903838,0.8246,2080.5,2080.3,9.61361]
[1742856904242,0.8246,2080.5,2080.4,4.80676]
[1742856907138,0.8246,2080.5,2080.3,4.80693]
[1742856915357,0.8246,2080.5,2080.3,9.6138]
[1742856915768,0.8246,2080.5,2080.4,4.80676]
[1742856916142,5.59423,2080.7,2080.4,4.80676]
[1742856916342,7.237238,2080.7,2080.4,4.80676]
[1742856917066,0.7881,2080.7,2080.4,4.80664]
[1742856917677,0.7881,2080.7,2080.5,4.80651]
[1742856919385,0.22608194,2080.6,2080.5,4.80651]
[1742856928082,0.8096,2080.9,2080.6,9.6124]
[1742856928282,0.8096,2080.9,2080.7,4.506]
[1742856928651,6.03,2081.1,2080.7,9.31198]
[1742856928857,0.8096,2081.1,2080.9,4.80557]
[1742856929071,0.8096,2081.1,2080.9,4.80547]
[1742856929276,0.8096,2081.1,2080.9,4.80546]
[1742856929483,0.8096,2081.1,2080.8,4.80582]
[1742856929663,0.8096,2081.1,2080.8,6.3120279]
[1742856929852,0.8096,2081.1,2080.9,4.80553]
[1742856932289,10.42011,2081.1,2080.7,9.31202]
[1742856932457,5.61526,2080.9,2080.7,4.506]
[1742856932662,1.042072,2080.8,2080.7,4.506]
[1742856932861,5.847922,2080.8,2080.5,4.80639]
[1742856933089,0.8096,2080.7,2080.6,4.506]
[1742856934419,1.01816089,2080.7,2080.6,4.506]
[1742856937872,0.20856089,2080.7,2080.6,4.506]
[1742856938104,5.62585,2080.9,2080.6,4.506]
[1742856938294,0.20843458,2080.8,2080.6,4.506]
[1742856939003,0.20843458,2080.8,2080.6,9.31224]
[1742856939403,0.20843458,2080.8,2080.7,4.80607]
[1742856941977,0.20843458,2080.8,2080.6,9.31224]
[1742856942304,0.20843458,2080.8,2080.6,9.31217]
[1742856942696,0.20843458,2080.8,2080.7,4.80607]
[1742856942874,0.20843458,2080.8,2080.6,9.31221]
[1742856943409,0.20843458,2080.8,2080.6,14.1184]
[1742856943709,0.20843458,2080.8,2080.6,9.31219]
[1742856946987,1.27239604,2080.8,2080.6,4.506]
[1742856947194,6.07834604,2080.8,2080.6,4.506]
[1742856947393,1.27239604,2080.8,2080.6,4.506]
[1742856948416,1.27239604,2080.8,2080.6,9.31227]
[1742856950620,0.20843458,2080.8,2080.6,9.31227]
[1742856951491,0.20843458,2080.8,2080.6,4.506]
[1742856951823,0.20843458,2080.8,2080.6,9.31228]
[1742856952392,5.01427458,2080.8,2080.7,4.505]
[1742856953926,0.20843458,2080.8,2080.7,4.505]
[1742856961641,0.20843458,2080.8,2080.7,9.31107]
[1742856967050,11.63102,2081.1,2080.7,14.11714]
[1742856967229,0.20850496,2081.0,2080.7,14.11714]
[1742856967628,0.20850496,2081.0,2080.8,4.80583]
[1742856968042,0.20850496,2081.0,2080.7,9.31097]
[1742856968241,0.20850496,2081.0,2080.8,4.80576]
[1742856969053,0.20850496,2081.0,2080.7,9.31098]
[1742856971152,1.87298946,2081.0,2080.7,9.31098]
[1742856971360,6.67836946,2081.0,2080.7,9.31098]
[1742856971978,1.87298946,2081.0,2080.7,9.31098]
[1742856973325,6.67837946,2081.0,2080.7,9.31098]
[1742856973526,6.67837946,2081.0,2080.7,4.505]
[1742856973727,7.35288995,2080.9,2080.7,4.505]
[1742856974054,0.20836938,2080.8,2080.7,4.505]
[1742856974227,5.01420938,2080.8,2080.7,4.505]
[1742856975434,0.20836938,2080.8,2080.7,4.505]
[1742856975849,0.7958,2080.5,2080.3,4.505]
[1742856976047,0.20725033,2080.4,2080.3,4.505]
[1742856978880,5.01401033,2080.4,2080.3,4.505]
[1742856979969,5.80981033,2080.4,2080.3,4.505]
[1742856981471,6.87145336,2080.4,2080.3,4.505]
[1742856983073,6.87145336,2080.4,2080.1,25.405]
[1742856983074,4.80709,2080.3,2080.2,4.505]
[1742856983251,5.01238117,2080.3,2080.2,4.505]
[1742856983453,9.81955117,2080.3,2080.1,25.405]
[1742856983656,5.01238117,2080.3,2080.2,4.505]
[1742856984056,5.57043,2080.2,2080.1,29.91]
[1742856984250,5.77361387,2080.2,2080.1,29.91]
[1742856984871,5.77361387,2080.2,2080.1,25.405]
[1742856985060,4.80746,2080.1,2080.0,4.505]
[1742856985261,4.80799,2079.9,2079.5,0.1276]
[1742856985463,5.57151,2079.8,2079.6,4.505]
[1742856985663,5.7706987,2079.8,2079.6,4.505]
[1742856985865,4.80838,2079.7,2079.6,4.505]
[1742856986046,5.7706987,2079.8,2079.6,4.505]
[1742856986246,0.20123667,2079.7,2079.6,4.505]
[1742856986565,11.54353261,2079.8,2079.6,4.505]
[1742856986756,0.20038844,2079.7,2079.6,4.505]
[1742856987581,11.54355261,2079.8,2079.6,4.505]
[1742856987773,0.20038844,2079.7,2079.6,4.505]
[1742856988153,10.37984,2079.8,2079.6,4.505]
[1742856988377,0.20038844,2079.7,2079.6,4.505]
[1742856988750,6.609494,2079.8,2079.6,4.505]
[1742856988964,0.20038844,2079.7,2079.6,4.505]
[1742856989294,6.609494,2079.8,2079.6,4.505]
[1742856989597,0.20038844,2079.7,2079.6,4.505]
[1742856990254,4.80838,2079.7,2079.6,4.505]
[1742856990454,5.00876844,2079.7,2079.6,4.505]
[1742856991770,6.17059468,2079.7,2079.6,4.505]
[1742856991976,6.17059468,2079.7,2079.6,4.506]
[1742856994097,0.20038844,2079.7,2079.6,4.506]
[1742856994309,5.57152,2079.8,2079.6,4.506]
[1742856994612,0.19774544,2079.7,2079.6,4.506]
[1742856994818,5.00612544,2079.7,2079.6,4.506]
[1742856994975,4.80838,2079.7,2079.6,4.506]
[1742856995169,5.00612544,2079.7,2079.6,4.506]
[1742856996098,4.80862,2079.6,2079.3,30.21828]
[1742856996301,0.19518956,2079.5,2079.4,4.506]